[Event "Early-Titled-Tuesday-Blitz-June-18-2024"]
[Site "Chess.com"]
[Date "2024.06.18"]
[Round "11"]
[White "GeorgiosSouleidis"]
[Black "ploxoi"]
[Result "1/2-1/2"]
[WhiteElo "2702"]
[BlackElo "2515"]
[TimeControl "180+1"]
[EndTime "10:07:25 PDT"]
[Termination "Game drawn by repetition"]

1. e4 {[%clk 0:03:00.9]} 1... e6 {[%clk 0:02:59.4]} 2. d4 {[%clk 0:03:00.4]}
2... d5 {[%clk 0:03:00.3]} 3. Nc3 {[%clk 0:03:00.7]} 3... Bb4 {[%clk 0:02:59.8]}
4. Ne2 {[%clk 0:03:00.6]} 4... dxe4 {[%clk 0:02:58.1]} 5. a3 {[%clk 0:03:00.5]}
5... Bxc3+ {[%clk 0:02:48.6]} 6. Nxc3 {[%clk 0:03:01.4]} 6... Nf6 {[%clk
0:02:49.4]} 7. Bg5 {[%clk 0:03:01]} 7... Nc6 {[%clk 0:02:49]} 8. Bb5 {[%clk
0:02:59.7]} 8... Bd7 {[%clk 0:02:48.4]} 9. Nxe4 {[%clk 0:02:58.4]} 9... h6
{[%clk 0:02:42]} 10. Nxf6+ {[%clk 0:02:49]} 10... gxf6 {[%clk 0:02:42.9]} 11.
Bh4 {[%clk 0:02:49.3]} 11... Rg8 {[%clk 0:02:26.6]} 12. O-O {[%clk 0:02:45.5]}
12... Qe7 {[%clk 0:02:22.7]} 13. d5 {[%clk 0:02:27]} 13... Ne5 {[%clk
0:02:20.6]} 14. Bxd7+ {[%clk 0:02:26.9]} 14... Qxd7 {[%clk 0:02:18.4]} 15. dxe6
{[%clk 0:02:27.4]} 15... Qxd1 {[%clk 0:02:10.5]} 16. exf7+ {[%clk 0:02:24]}
16... Kxf7 {[%clk 0:02:09.2]} 17. Rfxd1 {[%clk 0:02:23.2]} 17... Nf3+ {[%clk
0:02:09.6]} 18. Kf1 {[%clk 0:02:23.7]} 18... Nxh4 {[%clk 0:02:10.5]} 19. Rd7+
{[%clk 0:02:23.8]} 19... Kg6 {[%clk 0:02:06.8]} 20. Rxc7 {[%clk 0:02:23.4]}
20... Rgc8 {[%clk 0:02:04.7]} 21. Rxc8 {[%clk 0:02:08.2]} 21... Rxc8 {[%clk
0:02:05.6]} 22. c3 {[%clk 0:02:08.8]} 22... Rc6 {[%clk 0:01:38.6]} 23. Rd1
{[%clk 0:02:07.6]} 23... Rb6 {[%clk 0:01:39]} 24. b4 {[%clk 0:02:06.8]} 24...
Ra6 {[%clk 0:01:39.3]} 25. Ra1 {[%clk 0:02:01.8]} 25... Rc6 {[%clk 0:01:35]} 26.
Rc1 {[%clk 0:02:01]} 26... Nf5 {[%clk 0:01:35.7]} 27. Ke2 {[%clk 0:01:59.3]}
27... Nd4+ {[%clk 0:01:35.1]} 28. Kd3 {[%clk 0:01:56.9]} 28... Nb5 {[%clk
0:01:31.6]} 29. a4 {[%clk 0:01:52.5]} 29... Nd6 {[%clk 0:01:27.3]} 30. c4 {[%clk
0:01:52.8]} 30... Nf5 {[%clk 0:01:23.5]} 31. c5 {[%clk 0:01:45.8]} 31... Ra6
{[%clk 0:01:23.1]} 32. Ra1 {[%clk 0:01:30.5]} 32... Re6 {[%clk 0:01:18.7]} 33.
b5 {[%clk 0:01:28.6]} 33... a6 {[%clk 0:01:01.6]} 34. Rc1 {[%clk 0:01:23.3]}
34... axb5 {[%clk 0:00:57.6]} 35. axb5 {[%clk 0:01:24.2]} 35... Ne7 {[%clk
0:00:57.6]} 36. Rc2 {[%clk 0:01:10]} 36... Kf7 {[%clk 0:00:52.6]} 37. Kd4 {[%clk
0:01:07.1]} 37... Ke8 {[%clk 0:00:51.3]} 38. Ra2 {[%clk 0:01:03.4]} 38... Nf5+
{[%clk 0:00:39.1]} 39. Kd3 {[%clk 0:00:55.7]} 39... Re5 {[%clk 0:00:37.5]} 40.
Kc4 {[%clk 0:00:52.6]} 40... Re4+ {[%clk 0:00:32.2]} 41. Kd5 {[%clk 0:00:51.7]}
41... Re5+ {[%clk 0:00:27.9]} 42. Kc4 {[%clk 0:00:52]} 42... Re4+ {[%clk
0:00:15.3]} 43. Kd5 {[%clk 0:00:52.4]} 43... Re5+ {[%clk 0:00:15.8]} 44. Kc4
{[%clk 0:00:52.8]} 1/2-1/2

[Event "Early-Titled-Tuesday-Blitz-June-18-2024"]
[Site "Chess.com"]
[Date "2024.06.18"]
[Round "11"]
[White "LastGladiator1"]
[Black "c63_amg"]
[Result "1-0"]
[WhiteElo "2976"]
[BlackElo "2809"]
[TimeControl "180+1"]
[EndTime "10:07:26 PDT"]
[Termination "LastGladiator1 won on time"]

1. e4 {[%clk 0:03:00.9]} 1... c6 {[%clk 0:02:55.7]} 2. d4 {[%clk 0:02:57.2]}
2... d5 {[%clk 0:02:56.6]} 3. Nc3 {[%clk 0:02:57]} 3... dxe4 {[%clk 0:02:55.7]}
4. Nxe4 {[%clk 0:02:57.9]} 4... Nf6 {[%clk 0:02:55.6]} 5. Nxf6+ {[%clk
0:02:58.2]} 5... exf6 {[%clk 0:02:56.5]} 6. c3 {[%clk 0:02:55.4]} 6... Bd6
{[%clk 0:02:57.4]} 7. Bd3 {[%clk 0:02:55.6]} 7... Na6 {[%clk 0:02:58.3]} 8. Qh5
{[%clk 0:02:43.9]} 8... Nc7 {[%clk 0:02:59.2]} 9. Ne2 {[%clk 0:02:42.4]} 9... g6
{[%clk 0:02:56.1]} 10. Qh6 {[%clk 0:02:42.7]} 10... Bf8 {[%clk 0:02:50.4]} 11.
Qe3+ {[%clk 0:02:40.3]} 11... Be6 {[%clk 0:02:44.8]} 12. Nf4 {[%clk 0:02:35.5]}
12... Bd6 {[%clk 0:02:37.3]} 13. O-O {[%clk 0:02:29.6]} 13... O-O {[%clk
0:02:37]} 14. Nxe6 {[%clk 0:02:29.7]} 14... Nxe6 {[%clk 0:02:36.8]} 15. Qf3
{[%clk 0:02:25.5]} 15... f5 {[%clk 0:02:33.4]} 16. g3 {[%clk 0:02:20.9]} 16...
Re8 {[%clk 0:02:33.1]} 17. Bd2 {[%clk 0:02:17.7]} 17... Ng5 {[%clk 0:02:22.2]}
18. Qg2 {[%clk 0:02:17.6]} 18... Ne4 {[%clk 0:01:56.3]} 19. Be3 {[%clk
0:02:16.3]} 19... Nf6 {[%clk 0:01:57]} 20. Rfe1 {[%clk 0:02:13.6]} 20... Nd5
{[%clk 0:01:51.1]} 21. Bd2 {[%clk 0:02:14.1]} 21... Qf6 {[%clk 0:01:49.5]} 22.
a4 {[%clk 0:02:12.1]} 22... f4 {[%clk 0:01:45.1]} 23. a5 {[%clk 0:02:11.4]}
23... a6 {[%clk 0:01:37.1]} 24. b4 {[%clk 0:02:07.7]} 24... Kg7 {[%clk
0:01:31.1]} 25. Qf3 {[%clk 0:02:04.4]} 25... fxg3 {[%clk 0:01:15.6]} 26. Qxf6+
{[%clk 0:02:05.3]} 26... Nxf6 {[%clk 0:01:14.5]} 27. hxg3 {[%clk 0:02:05.7]}
27... Rxe1+ {[%clk 0:01:10.5]} 28. Rxe1 {[%clk 0:02:06.6]} 28... Re8 {[%clk
0:01:10.5]} 29. Rxe8 {[%clk 0:02:05.9]} 29... Nxe8 {[%clk 0:01:11.4]} 30. c4
{[%clk 0:02:06.3]} 30... Nc7 {[%clk 0:01:04.8]} 31. Be4 {[%clk 0:02:04.5]} 31...
f5 {[%clk 0:01:03.1]} 32. Bf3 {[%clk 0:02:04.4]} 32... Kf7 {[%clk 0:00:56.3]}
33. Kf1 {[%clk 0:02:01.1]} 33... h5 {[%clk 0:00:43.3]} 34. Ke2 {[%clk
0:01:57.2]} 34... Be7 {[%clk 0:00:42.7]} 35. Kd3 {[%clk 0:01:56.8]} 35... Ke6
{[%clk 0:00:37.9]} 36. Bf4 {[%clk 0:01:54.4]} 36... Bd6 {[%clk 0:00:35.8]} 37.
Bd2 {[%clk 0:01:54.1]} 37... Be7 {[%clk 0:00:36]} 38. Kc3 {[%clk 0:01:45.3]}
38... Bf6 {[%clk 0:00:31.9]} 39. Bf4 {[%clk 0:01:43.1]} 39... Kd7 {[%clk
0:00:32.4]} 40. Kd3 {[%clk 0:01:43.3]} 40... Ne6 {[%clk 0:00:29.5]} 41. Be3
{[%clk 0:01:42.1]} 41... h4 {[%clk 0:00:25.6]} 42. d5 {[%clk 0:01:31.6]} 42...
cxd5 {[%clk 0:00:24]} 43. Bxd5 {[%clk 0:01:32.3]} 43... hxg3 {[%clk 0:00:17.1]}
44. fxg3 {[%clk 0:01:33.2]} 44... Nd8 {[%clk 0:00:17.4]} 45. b5 {[%clk 0:01:32]}
45... g5 {[%clk 0:00:11.6]} 46. Kc2 {[%clk 0:01:18]} 46... Be5 {[%clk
0:00:07.6]} 47. Bxb7 {[%clk 0:01:16.6]} 47... axb5 {[%clk 0:00:03.9]} 48. a6
{[%clk 0:01:09.8]} 1-0

[Event "Early-Titled-Tuesday-Blitz-June-18-2024"]
[Site "Chess.com"]
[Date "2024.06.18"]
[Round "11"]
[White "Szachulec75"]
[Black "IndianSchoolOfSuffering"]
[Result "0-1"]
[WhiteElo "2255"]
[BlackElo "2510"]
[TimeControl "180+1"]
[EndTime "10:07:26 PDT"]
[Termination "IndianSchoolOfSuffering won on time"]

1. Nf3 {[%clk 0:03:00.9]} 1... g6 {[%clk 0:02:58.7]} 2. g3 {[%clk 0:03:00.5]}
2... Bg7 {[%clk 0:02:58.8]} 3. Bg2 {[%clk 0:03:01]} 3... c6 {[%clk 0:02:59]} 4.
d3 {[%clk 0:03:01.3]} 4... d5 {[%clk 0:02:59.7]} 5. O-O {[%clk 0:03:00.5]} 5...
Nf6 {[%clk 0:02:59.7]} 6. Nbd2 {[%clk 0:02:59.7]} 6... O-O {[%clk 0:03:00.2]} 7.
e4 {[%clk 0:02:58.8]} 7... dxe4 {[%clk 0:02:59.9]} 8. dxe4 {[%clk 0:02:57.7]}
8... a5 {[%clk 0:02:59.4]} 9. a4 {[%clk 0:02:46.7]} 9... Na6 {[%clk 0:02:57.2]}
10. c3 {[%clk 0:02:44.6]} 10... Nc5 {[%clk 0:02:53.8]} 11. Qc2 {[%clk 0:02:45]}
11... Qc7 {[%clk 0:02:50.6]} 12. Re1 {[%clk 0:02:42.7]} 12... e5 {[%clk
0:02:50.5]} 13. Nc4 {[%clk 0:02:41.6]} 13... Nfd7 {[%clk 0:02:40.9]} 14. Be3
{[%clk 0:02:36.9]} 14... Re8 {[%clk 0:02:31.8]} 15. Red1 {[%clk 0:02:31.5]}
15... Bf8 {[%clk 0:02:31.3]} 16. h3 {[%clk 0:02:28.1]} 16... b6 {[%clk
0:02:30.9]} 17. b4 {[%clk 0:02:12.9]} 17... axb4 {[%clk 0:02:28.7]} 18. cxb4
{[%clk 0:02:13.2]} 18... Ne6 {[%clk 0:02:27.5]} 19. Qb3 {[%clk 0:02:02.5]} 19...
c5 {[%clk 0:01:48.8]} 20. b5 {[%clk 0:01:55.2]} 20... Nd4 {[%clk 0:01:44.4]} 21.
Bxd4 {[%clk 0:01:51.4]} 21... cxd4 {[%clk 0:01:41.2]} 22. Rdc1 {[%clk
0:01:43.3]} 22... Nc5 {[%clk 0:01:40]} 23. Qb1 {[%clk 0:01:27.1]} 23... f6
{[%clk 0:01:30.3]} 24. a5 {[%clk 0:01:22.9]} 24... bxa5 {[%clk 0:01:26.1]} 25.
b6 {[%clk 0:01:22.8]} 25... Qf7 {[%clk 0:01:20]} 26. Rxa5 {[%clk 0:01:12.4]}
26... Bb7 {[%clk 0:01:11]} 27. Nfd2 {[%clk 0:01:02.3]} 27... h5 {[%clk
0:01:04.8]} 28. Qb5 {[%clk 0:00:49]} 28... Rxa5 {[%clk 0:00:59.7]} 29. Nxa5
{[%clk 0:00:46.5]} 29... Ba6 {[%clk 0:00:59.7]} 30. Qc6 {[%clk 0:00:26.4]} 30...
Rc8 {[%clk 0:00:57.2]} 31. Qd5 {[%clk 0:00:26.1]} 31... Qxd5 {[%clk 0:00:51.1]}
32. exd5 {[%clk 0:00:25.5]} 32... Rb8 {[%clk 0:00:51.9]} 33. Rb1 {[%clk
0:00:18.7]} 33... Bd3 {[%clk 0:00:47.9]} 34. Nc6 {[%clk 0:00:05.2]} 34... Rb7
{[%clk 0:00:41.4]} 0-1

[Event "Early-Titled-Tuesday-Blitz-June-18-2024"]
[Site "Chess.com"]
[Date "2024.06.18"]
[Round "11"]
[White "micke12a"]
[Black "Barboval"]
[Result "0-1"]
[WhiteElo "2385"]
[BlackElo "2530"]
[TimeControl "180+1"]
[EndTime "10:07:27 PDT"]
[Termination "Barboval won by resignation"]

1. e4 {[%clk 0:03:00.9]} 1... Nf6 {[%clk 0:02:56.3]} 2. e5 {[%clk 0:02:58.9]}
2... Nd5 {[%clk 0:02:56.5]} 3. d4 {[%clk 0:02:59.4]} 3... d6 {[%clk 0:02:57]} 4.
c4 {[%clk 0:02:57]} 4... Nb6 {[%clk 0:02:57.1]} 5. exd6 {[%clk 0:02:57.6]} 5...
exd6 {[%clk 0:02:58]} 6. Nf3 {[%clk 0:02:57.7]} 6... Nc6 {[%clk 0:02:58.2]} 7.
h3 {[%clk 0:02:56.9]} 7... Bf5 {[%clk 0:02:58.4]} 8. Bd3 {[%clk 0:02:51.9]} 8...
Bxd3 {[%clk 0:02:55.6]} 9. Qxd3 {[%clk 0:02:51.3]} 9... Be7 {[%clk 0:02:45.9]}
10. Nc3 {[%clk 0:02:50.7]} 10... O-O {[%clk 0:02:46]} 11. O-O {[%clk 0:02:50.4]}
11... Bf6 {[%clk 0:02:44.7]} 12. a3 {[%clk 0:02:49.3]} 12... d5 {[%clk
0:02:44.8]} 13. c5 {[%clk 0:02:48.7]} 13... Nc8 {[%clk 0:02:44.4]} 14. b4 {[%clk
0:02:45.9]} 14... a6 {[%clk 0:02:44.3]} 15. Bf4 {[%clk 0:02:44.5]} 15... N8e7
{[%clk 0:02:44]} 16. Rab1 {[%clk 0:02:40.8]} 16... Qd7 {[%clk 0:02:40.8]} 17. a4
{[%clk 0:02:39.5]} 17... Nf5 {[%clk 0:02:39.2]} 18. Ne2 {[%clk 0:02:32.8]} 18...
Rfe8 {[%clk 0:02:38.2]} 19. b5 {[%clk 0:02:31.6]} 19... axb5 {[%clk 0:02:38.3]}
20. axb5 {[%clk 0:02:32.5]} 20... Na5 {[%clk 0:02:38.9]} 21. Be5 {[%clk
0:02:20]} 21... Nc4 {[%clk 0:02:10.2]} 22. Bxf6 {[%clk 0:02:17.4]} 22... gxf6
{[%clk 0:02:11.1]} 23. Nf4 {[%clk 0:02:12]} 23... Ra3 {[%clk 0:01:56.3]} 24. Rb3
{[%clk 0:02:06.8]} 24... Rxb3 {[%clk 0:01:44.1]} 25. Qxb3 {[%clk 0:02:04.4]}
25... Ra8 {[%clk 0:01:44.7]} 26. Nh5 {[%clk 0:01:49.6]} 26... Kh8 {[%clk
0:01:41.5]} 27. Nxf6 {[%clk 0:01:46.3]} 27... Qe6 {[%clk 0:01:40.7]} 28. Ng4
{[%clk 0:01:40.5]} 28... Ra3 {[%clk 0:01:40.7]} 29. Qc2 {[%clk 0:01:36.9]} 29...
Rxf3 {[%clk 0:01:39.4]} 30. gxf3 {[%clk 0:01:29.9]} 30... h5 {[%clk 0:01:35.2]}
31. Ne3 {[%clk 0:01:12.4]} 31... Nxd4 {[%clk 0:01:35]} 32. Qd1 {[%clk
0:01:11.8]} 32... Nd2 {[%clk 0:01:31.3]} 33. f4 {[%clk 0:00:46.2]} 33... N4f3+
{[%clk 0:00:49]} 34. Kg2 {[%clk 0:00:42.7]} 34... Qe4 {[%clk 0:00:25]} 35. Qc2
{[%clk 0:00:30.8]} 35... Ne1+ {[%clk 0:00:20]} 36. Kg3 {[%clk 0:00:25.6]} 36...
Nxc2 {[%clk 0:00:20.2]} 0-1

[Event "Early-Titled-Tuesday-Blitz-June-18-2024"]
[Site "Chess.com"]
[Date "2024.06.18"]
[Round "11"]
[White "Rodalquilar"]
[Black "FairChess_on_YouTube"]
[Result "0-1"]
[WhiteElo "2824"]
[BlackElo "3097"]
[TimeControl "180+1"]
[EndTime "10:07:30 PDT"]
[Termination "FairChess_on_YouTube won on time"]

1. d4 {[%clk 0:03:00.9]} 1... f5 {[%clk 0:02:55.8]} 2. Nf3 {[%clk 0:02:59.9]}
2... Nf6 {[%clk 0:02:56]} 3. g3 {[%clk 0:02:58.7]} 3... g6 {[%clk 0:02:54.7]} 4.
Bg2 {[%clk 0:02:58.1]} 4... Bg7 {[%clk 0:02:55.3]} 5. O-O {[%clk 0:02:58.7]}
5... O-O {[%clk 0:02:55.9]} 6. Nbd2 {[%clk 0:02:59.1]} 6... Nc6 {[%clk
0:02:54.8]} 7. Re1 {[%clk 0:02:59.1]} 7... d5 {[%clk 0:02:47.6]} 8. c3 {[%clk
0:02:53]} 8... Ne4 {[%clk 0:02:45.3]} 9. Qb3 {[%clk 0:02:29.3]} 9... Kh8 {[%clk
0:02:43.8]} 10. a4 {[%clk 0:02:17.7]} 10... a5 {[%clk 0:02:37.6]} 11. Nf1 {[%clk
0:02:14.6]} 11... b6 {[%clk 0:02:22.2]} 12. Bf4 {[%clk 0:02:11]} 12... Ba6
{[%clk 0:02:21.7]} 13. Ne5 {[%clk 0:01:52.8]} 13... Nxe5 {[%clk 0:02:15]} 14.
Bxe5 {[%clk 0:01:53.7]} 14... Bxe5 {[%clk 0:02:12.4]} 15. dxe5 {[%clk
0:01:54.6]} 15... e6 {[%clk 0:02:09.2]} 16. Qc2 {[%clk 0:01:43.1]} 16... Qe7
{[%clk 0:02:06.3]} 17. f3 {[%clk 0:01:28.7]} 17... Nc5 {[%clk 0:01:56.3]} 18. b4
{[%clk 0:01:24.4]} 18... Nd7 {[%clk 0:01:48.9]} 19. f4 {[%clk 0:01:01.4]} 19...
axb4 {[%clk 0:01:42.6]} 20. cxb4 {[%clk 0:01:02.3]} 20... Qxb4 {[%clk
0:01:37.7]} 21. Qxc7 {[%clk 0:01:02.5]} 21... Qc5+ {[%clk 0:01:31.5]} 22. Qxc5
{[%clk 0:01:02.6]} 22... Nxc5 {[%clk 0:01:32.4]} 23. Nd2 {[%clk 0:00:48.4]}
23... Rfb8 {[%clk 0:01:24.9]} 24. Nf3 {[%clk 0:00:38.2]} 24... Nb3 {[%clk
0:01:13.4]} 25. Ra3 {[%clk 0:00:34.1]} 25... Bc4 {[%clk 0:01:14]} 26. Ng5 {[%clk
0:00:28.4]} 26... b5 {[%clk 0:01:03.2]} 27. Nxe6 {[%clk 0:00:28.7]} 27... Rxa4
{[%clk 0:01:02.7]} 28. Rxa4 {[%clk 0:00:11.6]} 28... bxa4 {[%clk 0:01:03.6]} 29.
Nc7 {[%clk 0:00:12.3]} 29... a3 {[%clk 0:00:42.1]} 30. e6 {[%clk 0:00:03.5]}
30... Kg7 {[%clk 0:00:41.9]} 31. e7 {[%clk 0:00:03.6]} 31... Kf7 {[%clk
0:00:41.6]} 32. Bxd5+ {[%clk 0:00:03.3]} 32... Bxd5 {[%clk 0:00:40.1]} 33. Nxd5
{[%clk 0:00:04.2]} 33... a2 {[%clk 0:00:39]} 0-1

[Event "Early-Titled-Tuesday-Blitz-June-18-2024"]
[Site "Chess.com"]
[Date "2024.06.18"]
[Round "11"]
[White "Zampronha1971"]
[Black "ningyzhou"]
[Result "1-0"]
[WhiteElo "2410"]
[BlackElo "2160"]
[TimeControl "180+1"]
[EndTime "10:07:30 PDT"]
[Termination "Zampronha1971 won by resignation"]

1. e4 {[%clk 0:03:00.9]} 1... e5 {[%clk 0:02:59.1]} 2. Nf3 {[%clk 0:03:00.4]}
2... Nc6 {[%clk 0:02:59.5]} 3. d4 {[%clk 0:03:01]} 3... exd4 {[%clk 0:02:59.6]}
4. Nxd4 {[%clk 0:03:01.7]} 4... Nf6 {[%clk 0:02:58.9]} 5. Nxc6 {[%clk
0:03:00.8]} 5... bxc6 {[%clk 0:02:59.4]} 6. e5 {[%clk 0:03:01.3]} 6... Qe7
{[%clk 0:03:00]} 7. Qe2 {[%clk 0:03:01.3]} 7... Nd5 {[%clk 0:03:00.5]} 8. c4
{[%clk 0:03:02]} 8... Nb6 {[%clk 0:03:00.9]} 9. Nc3 {[%clk 0:03:01.2]} 9... Qe6
{[%clk 0:03:00.1]} 10. Qe4 {[%clk 0:03:00.8]} 10... d5 {[%clk 0:03:00.1]} 11.
exd6 {[%clk 0:02:59.3]} 11... cxd6 {[%clk 0:03:00.4]} 12. Bd3 {[%clk 0:02:56.2]}
12... d5 {[%clk 0:02:53.6]} 13. cxd5 {[%clk 0:02:53.5]} 13... cxd5 {[%clk
0:02:53.9]} 14. Qxe6+ {[%clk 0:02:46.2]} 14... fxe6 {[%clk 0:02:53.9]} 15. O-O
{[%clk 0:02:45.4]} 15... Be7 {[%clk 0:02:53.1]} 16. Nb5 {[%clk 0:02:42.1]} 16...
O-O {[%clk 0:02:52.3]} 17. Re1 {[%clk 0:02:41.1]} 17... Bd8 {[%clk 0:02:44.1]}
18. Nd6 {[%clk 0:02:34]} 18... Bd7 {[%clk 0:02:42]} 19. Bb5 {[%clk 0:02:30.6]}
19... Bxb5 {[%clk 0:02:35.4]} 20. Nxb5 {[%clk 0:02:31.5]} 20... Rf6 {[%clk
0:02:35.1]} 21. Nd4 {[%clk 0:02:29.4]} 21... Kf7 {[%clk 0:02:28.4]} 22. Bg5
{[%clk 0:02:28.2]} 22... Rg6 {[%clk 0:02:28.4]} 23. Bxd8 {[%clk 0:02:25.1]}
23... Rxd8 {[%clk 0:02:28.9]} 24. Rac1 {[%clk 0:02:23.6]} 24... Rf6 {[%clk
0:02:20.9]} 25. Nc6 {[%clk 0:02:10.1]} 25... Ra8 {[%clk 0:02:19.1]} 26. Ne5+
{[%clk 0:02:08.6]} 26... Kg8 {[%clk 0:02:15.8]} 27. Rc7 {[%clk 0:02:06.4]} 27...
Raf8 {[%clk 0:02:07.4]} 28. f3 {[%clk 0:02:03.3]} 28... a5 {[%clk 0:02:03.3]}
29. b3 {[%clk 0:01:56.3]} 29... Rb8 {[%clk 0:01:53.2]} 30. Nc6 {[%clk
0:01:46.2]} 30... Re8 {[%clk 0:01:46.4]} 31. Rb7 {[%clk 0:01:36.6]} 31... Nc8
{[%clk 0:01:42.7]} 32. Nxa5 {[%clk 0:01:31.5]} 32... e5 {[%clk 0:01:41.5]} 33.
Rb8 {[%clk 0:01:25.8]} 33... Rfe6 {[%clk 0:01:36.6]} 34. Rc1 {[%clk 0:01:23.5]}
34... Nd6 {[%clk 0:01:30.4]} 35. Rxe8+ {[%clk 0:01:24.4]} 35... Rxe8 {[%clk
0:01:29.5]} 36. Nc6 {[%clk 0:01:22.5]} 36... e4 {[%clk 0:01:26.5]} 37. Kf2
{[%clk 0:01:16.7]} 37... e3+ {[%clk 0:01:24.7]} 38. Ke2 {[%clk 0:01:16.5]} 38...
Nf5 {[%clk 0:01:21.1]} 39. g4 {[%clk 0:01:14.3]} 39... Nh4 {[%clk 0:01:20.4]}
40. Rd1 {[%clk 0:01:08.2]} 40... Ng6 {[%clk 0:01:20.5]} 41. Rd4 {[%clk
0:01:01.3]} 41... Re6 {[%clk 0:01:11.5]} 42. Nb4 {[%clk 0:01:00]} 42... Re5
{[%clk 0:01:04.5]} 43. a4 {[%clk 0:00:55.6]} 43... Ne7 {[%clk 0:00:58.9]} 44. a5
{[%clk 0:00:50.4]} 44... g5 {[%clk 0:00:53]} 45. a6 {[%clk 0:00:45.1]} 45... Ng6
{[%clk 0:00:52.9]} 46. a7 {[%clk 0:00:28.2]} 46... Re8 {[%clk 0:00:53.3]} 47.
Nxd5 {[%clk 0:00:28.4]} 1-0

[Event "Early-Titled-Tuesday-Blitz-June-18-2024"]
[Site "Chess.com"]
[Date "2024.06.18"]
[Round "11"]
[White "Nicolik"]
[Black "Aradhya2000"]
[Result "1-0"]
[WhiteElo "2659"]
[BlackElo "2797"]
[TimeControl "180+1"]
[EndTime "10:07:31 PDT"]
[Termination "Nicolik won by checkmate"]

1. d4 {[%clk 0:03:00.9]} 1... d5 {[%clk 0:02:59.5]} 2. Nc3 {[%clk 0:03:01.3]}
2... Nf6 {[%clk 0:02:59.4]} 3. Bf4 {[%clk 0:03:01.7]} 3... c5 {[%clk 0:02:58.4]}
4. e3 {[%clk 0:03:01.8]} 4... Bg4 {[%clk 0:02:55.9]} 5. f3 {[%clk 0:02:58.4]}
5... Bd7 {[%clk 0:02:55.7]} 6. g4 {[%clk 0:02:41.2]} 6... e6 {[%clk 0:02:51.9]}
7. Nge2 {[%clk 0:02:34.1]} 7... Nc6 {[%clk 0:02:45.5]} 8. a3 {[%clk 0:02:27.7]}
8... a6 {[%clk 0:02:37]} 9. h4 {[%clk 0:02:20]} 9... h6 {[%clk 0:02:36.2]} 10.
Bg3 {[%clk 0:02:10.7]} 10... Rc8 {[%clk 0:02:35.5]} 11. Bg2 {[%clk 0:02:05.8]}
11... b5 {[%clk 0:02:22.6]} 12. Nf4 {[%clk 0:01:53.2]} 12... Qb6 {[%clk
0:02:11.6]} 13. Nce2 {[%clk 0:01:53]} 13... Be7 {[%clk 0:02:09.4]} 14. c3 {[%clk
0:01:52.9]} 14... g6 {[%clk 0:02:04.8]} 15. Kf2 {[%clk 0:01:51.7]} 15... c4
{[%clk 0:01:53]} 16. g5 {[%clk 0:01:49.2]} 16... Ng8 {[%clk 0:01:51.9]} 17. h5
{[%clk 0:01:40]} 17... hxg5 {[%clk 0:01:50.8]} 18. hxg6 {[%clk 0:01:40.4]} 18...
Rxh1 {[%clk 0:01:45.6]} 19. gxf7+ {[%clk 0:01:40.7]} 19... Kxf7 {[%clk
0:01:44.5]} 20. Qxh1 {[%clk 0:01:41.4]} 20... gxf4 {[%clk 0:01:44.9]} 21. Qh7+
{[%clk 0:01:40.5]} 21... Kf8 {[%clk 0:01:44.1]} 22. Nxf4 {[%clk 0:01:40.9]}
22... Nf6 {[%clk 0:01:36.9]} 23. Ng6+ {[%clk 0:01:16.8]} 23... Ke8 {[%clk
0:01:36.2]} 24. Qg7 {[%clk 0:01:16.3]} 24... Kd8 {[%clk 0:00:50.7]} 25. Nxe7
{[%clk 0:01:14.2]} 25... Nxe7 {[%clk 0:00:50.6]} 26. Qxf6 {[%clk 0:01:13.8]}
26... a5 {[%clk 0:00:47.6]} 27. Rh1 {[%clk 0:01:12.4]} 27... Be8 {[%clk
0:00:46.9]} 28. Rh7 {[%clk 0:01:10.6]} 28... Qb7 {[%clk 0:00:45.3]} 29. Bd6
{[%clk 0:01:07.3]} 29... Rc7 {[%clk 0:00:45.2]} 30. Qxe6 {[%clk 0:01:00.1]}
30... Rd7 {[%clk 0:00:44.2]} 31. Bh3 {[%clk 0:00:55.7]} 31... Qc6 {[%clk
0:00:44.4]} 32. Bxe7+ {[%clk 0:00:55.3]} 32... Kc7 {[%clk 0:00:43]} 33. Qxc6+
{[%clk 0:00:54.6]} 33... Kxc6 {[%clk 0:00:43.1]} 34. Bxd7+ {[%clk 0:00:55.2]}
34... Kxd7 {[%clk 0:00:43.6]} 35. Bb4+ {[%clk 0:00:54.2]} 35... Kc6 {[%clk
0:00:44]} 36. Bxa5 {[%clk 0:00:54.9]} 36... Bd7 {[%clk 0:00:44.1]} 37. Rxd7
{[%clk 0:00:53.8]} 37... Kxd7 {[%clk 0:00:44.2]} 38. e4 {[%clk 0:00:54]} 38...
Ke6 {[%clk 0:00:44.5]} 39. Ke3 {[%clk 0:00:53.9]} 39... Kd6 {[%clk 0:00:44.1]}
40. Kf4 {[%clk 0:00:54.4]} 40... Ke6 {[%clk 0:00:43.4]} 41. e5 {[%clk
0:00:54.8]} 41... Ke7 {[%clk 0:00:43.4]} 42. Kf5 {[%clk 0:00:55.1]} 42... Kf7
{[%clk 0:00:44]} 43. e6+ {[%clk 0:00:55.6]} 43... Kg7 {[%clk 0:00:44.6]} 44. Ke5
{[%clk 0:00:54.8]} 44... Kf8 {[%clk 0:00:45.2]} 45. f4 {[%clk 0:00:54.9]} 45...
Ke7 {[%clk 0:00:45.8]} 46. f5 {[%clk 0:00:54.5]} 46... Ke8 {[%clk 0:00:46.5]}
47. f6 {[%clk 0:00:51.1]} 47... Kf8 {[%clk 0:00:47]} 48. Kf5 {[%clk 0:00:49]}
48... Kg8 {[%clk 0:00:46.6]} 49. Kg6 {[%clk 0:00:41.7]} 49... Kh8 {[%clk
0:00:46.4]} 50. e7 {[%clk 0:00:39.4]} 50... Kg8 {[%clk 0:00:45.9]} 51. e8=Q#
{[%clk 0:00:40.3]} 1-0